[Event "*** Titled Tuesday Blitz"]
[Site "Chess.com"]
[Date "2019.12.03"]
[Round "9"]
[White "HanSchut"]
[Black "HouseOfDurin"]
[Result "1-0"]
[WhiteElo "2304"]
[BlackElo "2118"]
[TimeControl "180+2"]
[EndTime "15:07:48 PST"]
[Termination "HanSchut won by resignation"]

1. e4 {[%clk 0:03:01.9]} 1... c5 {[%clk 0:03:00.9]} 2. Nf3 {[%clk 0:03:02.3]}
2... Nc6 {[%clk 0:03:02.3]} 3. d4 {[%clk 0:03:02.5]} 3... cxd4 {[%clk
0:03:04.2]} 4. Nxd4 {[%clk 0:03:04.1]} 4... e5 {[%clk 0:03:05.8]} 5. Nb5 {[%clk
0:03:04.4]} 5... d6 {[%clk 0:03:07]} 6. N1c3 {[%clk 0:03:05.3]} 6... a6 {[%clk
0:03:06.3]} 7. Na3 {[%clk 0:03:06.9]} 7... b5 {[%clk 0:03:07.9]} 8. Nd5 {[%clk
0:03:08.5]} 8... Nf6 {[%clk 0:03:08.8]} 9. c4 {[%clk 0:03:10]} 9... b4 {[%clk
0:03:00.5]} 10. Nc2 {[%clk 0:02:56.7]} 10... Nxe4 {[%clk 0:02:54.1]} 11. Be3
{[%clk 0:02:53.5]} 11... Rb8 {[%clk 0:02:30.5]} 12. Bd3 {[%clk 0:02:42.9]} 12...
Nf6 {[%clk 0:02:08.7]} 13. Bg5 {[%clk 0:02:37.3]} 13... Be7 {[%clk 0:02:09.1]}
14. Nxe7 {[%clk 0:02:33.9]} 14... Qxe7 {[%clk 0:02:04.5]} 15. Ne3 {[%clk
0:02:34.3]} 15... Be6 {[%clk 0:01:58.8]} 16. Nd5 {[%clk 0:02:32.1]} 16... Bxd5
{[%clk 0:01:47.2]} 17. cxd5 {[%clk 0:02:32.8]} 17... Nd4 {[%clk 0:01:42.7]} 18.
Bxa6 {[%clk 0:02:33.2]} 18... Qa7 {[%clk 0:00:58.2]} 19. Bd3 {[%clk 0:02:04.4]}
19... Nxd5 {[%clk 0:00:53.3]} 20. O-O {[%clk 0:01:55.6]} 20... h6 {[%clk
0:00:37.5]} 21. Qh5 {[%clk 0:01:46.1]} 21... Ne6 {[%clk 0:00:21.6]} 22. Bd2
{[%clk 0:01:24.6]} 22... Ndf4 {[%clk 0:00:20.8]} 23. Qf3 {[%clk 0:01:15.6]}
23... O-O {[%clk 0:00:15.9]} 24. Bxf4 {[%clk 0:01:05]} 24... Nxf4 {[%clk
0:00:17.8]} 25. Bc2 {[%clk 0:01:01.8]} 25... Qe7 {[%clk 0:00:06.9]} 26. g3
{[%clk 0:00:57.1]} 26... Ne6 {[%clk 0:00:06.8]} 27. Qe3 {[%clk 0:00:49.5]} 27...
Nd4 {[%clk 0:00:06.9]} 28. Bd3 {[%clk 0:00:47.4]} 28... f5 {[%clk 0:00:07.5]}
29. Rfe1 {[%clk 0:00:47.6]} 29... Qf6 {[%clk 0:00:08.5]} 30. a4 {[%clk
0:00:40.1]} 30... f4 {[%clk 0:00:09.1]} 31. Qe4 {[%clk 0:00:41.3]} 31... f3
{[%clk 0:00:07.3]} 32. Qh7+ {[%clk 0:00:34.7]} 32... Kf7 {[%clk 0:00:08.5]} 33.
Bc4+ {[%clk 0:00:32.8]} 33... Ke7 {[%clk 0:00:08.6]} 34. Rad1 {[%clk 0:00:25.5]}
34... Ne6 {[%clk 0:00:09.2]} 35. Qe4 {[%clk 0:00:18.3]} 35... Rbd8 {[%clk
0:00:09.8]} 36. Bb5 {[%clk 0:00:17.9]} 36... Qf5 {[%clk 0:00:10.3]} 37. Qxf5
{[%clk 0:00:14.4]} 37... Rxf5 {[%clk 0:00:12.2]} 38. h4 {[%clk 0:00:14.9]} 38...
Nd4 {[%clk 0:00:13.2]} 39. Rxd4 {[%clk 0:00:15.1]} 39... Kf6 {[%clk 0:00:14.7]}
40. Rde4 {[%clk 0:00:15.5]} 40... g5 {[%clk 0:00:14.9]} 41. Rxb4 {[%clk
0:00:16.3]} 41... gxh4 {[%clk 0:00:15.3]} 42. Rxh4 {[%clk 0:00:18.2]} 42... Kg6
{[%clk 0:00:16.3]} 43. Ree4 {[%clk 0:00:17.1]} 43... d5 {[%clk 0:00:17.1]} 44.
Reg4+ {[%clk 0:00:18.1]} 44... Kh7 {[%clk 0:00:18.1]} 45. Kh2 {[%clk 0:00:15.8]}
45... e4 {[%clk 0:00:19.4]} 46. Rf4 {[%clk 0:00:16.4]} 46... Rxf4 {[%clk
0:00:17.4]} 47. Rxf4 {[%clk 0:00:17.5]} 47... Kg6 {[%clk 0:00:17.4]} 48. g4
{[%clk 0:00:17.7]} 48... Kg5 {[%clk 0:00:17.4]} 49. Kg3 {[%clk 0:00:19.1]} 49...
Rd6 {[%clk 0:00:16.2]} 50. b4 {[%clk 0:00:18.9]} 50... d4 {[%clk 0:00:09]} 51.
Rxe4 {[%clk 0:00:19.1]} 51... d3 {[%clk 0:00:10.5]} 52. Re1 {[%clk 0:00:18.4]}
52... d2 {[%clk 0:00:11.9]} 53. Rd1 {[%clk 0:00:20]} 53... Rd4 {[%clk 0:00:12]}
54. Kxf3 {[%clk 0:00:16.1]} 54... Rf4+ {[%clk 0:00:13.2]} 55. Ke2 {[%clk
0:00:17.1]} 55... Rxg4 {[%clk 0:00:14.6]} 56. Rxd2 {[%clk 0:00:18.7]} 56... Rxb4
{[%clk 0:00:16.3]} 57. Bd3 {[%clk 0:00:17.3]} 57... h5 {[%clk 0:00:17.3]} 58. a5
{[%clk 0:00:18.2]} 58... Ra4 {[%clk 0:00:18.4]} 59. a6 {[%clk 0:00:18.9]} 59...
h4 {[%clk 0:00:19.8]} 60. Rd1 {[%clk 0:00:20.5]} 60... Kf4 {[%clk 0:00:20.3]}
61. Rh1 {[%clk 0:00:20.9]} 61... Ke5 {[%clk 0:00:20.8]} 62. Ke3 {[%clk 0:00:22]}
62... Ra3 {[%clk 0:00:21.6]} 63. f4+ {[%clk 0:00:23.2]} 63... Kd6 {[%clk
0:00:20.2]} 64. Rxh4 {[%clk 0:00:23.3]} 64... Ra1 {[%clk 0:00:21.2]} 65. Rh6+
{[%clk 0:00:23.6]} 65... Ke7 {[%clk 0:00:21.6]} 66. a7 {[%clk 0:00:24.6]} 66...
Kf8 {[%clk 0:00:21.6]} 67. a8=Q+ {[%clk 0:00:24.4]} 67... Rxa8 {[%clk
0:00:22.9]} 68. Rh8+ {[%clk 0:00:25.7]} 68... Ke7 {[%clk 0:00:24.8]} 69. Rxa8
{[%clk 0:00:26.8]} 69... Kf6 {[%clk 0:00:26.7]} 70. Ra5 {[%clk 0:00:28.2]} 70...
Ke6 {[%clk 0:00:28.4]} 71. Ke4 {[%clk 0:00:29.2]} 71... Kf7 {[%clk 0:00:30.3]}
72. Bc4+ {[%clk 0:00:30.4]} 1-0

[Event "*** Titled Tuesday Blitz"]
[Site "Chess.com"]
[Date "2019.12.03"]
[Round "9"]
[White "Kostya_Nikologorskiy"]
[Black "Radzio1987"]
[Result "0-1"]
[WhiteElo "2655"]
[BlackElo "2854"]
[TimeControl "180+2"]
[EndTime "15:07:56 PST"]
[Termination "Radzio1987 won on time"]

1. d4 {[%clk 0:03:01.9]} 1... Nf6 {[%clk 0:03:00.5]} 2. c4 {[%clk 0:03:02]} 2...
e6 {[%clk 0:03:00.8]} 3. Nf3 {[%clk 0:03:02.2]} 3... d5 {[%clk 0:03:02]} 4. g3
{[%clk 0:03:02]} 4... Bb4+ {[%clk 0:03:01]} 5. Bd2 {[%clk 0:03:02.8]} 5... Be7
{[%clk 0:03:01.8]} 6. Bg2 {[%clk 0:03:00.8]} 6... Nbd7 {[%clk 0:03:02.8]} 7. Bc3
{[%clk 0:02:59.6]} 7... O-O {[%clk 0:03:02]} 8. Nbd2 {[%clk 0:02:58]} 8... b6
{[%clk 0:03:01.9]} 9. O-O {[%clk 0:02:58.8]} 9... Bb7 {[%clk 0:03:02.7]} 10.
cxd5 {[%clk 0:02:57.9]} 10... Nxd5 {[%clk 0:02:59.4]} 11. e4 {[%clk 0:02:58.6]}
11... Nxc3 {[%clk 0:03:00]} 12. bxc3 {[%clk 0:03:00.5]} 12... c5 {[%clk
0:03:01.1]} 13. Qe2 {[%clk 0:02:57]} 13... Nf6 {[%clk 0:02:59.8]} 14. Rfd1
{[%clk 0:02:57]} 14... cxd4 {[%clk 0:02:56.4]} 15. cxd4 {[%clk 0:02:58.9]} 15...
Bb4 {[%clk 0:02:57.1]} 16. e5 {[%clk 0:02:44.2]} 16... Nd5 {[%clk 0:02:56.3]}
17. Ne4 {[%clk 0:02:45.5]} 17... h6 {[%clk 0:02:55.6]} 18. Rac1 {[%clk
0:02:42.3]} 18... Qd7 {[%clk 0:02:52.5]} 19. Ne1 {[%clk 0:02:39.2]} 19... Rac8
{[%clk 0:02:44.9]} 20. Nd3 {[%clk 0:02:36.7]} 20... Be7 {[%clk 0:02:45.1]} 21.
h4 {[%clk 0:02:32.7]} 21... Rxc1 {[%clk 0:02:41.3]} 22. Rxc1 {[%clk 0:02:33.5]}
22... Rc8 {[%clk 0:02:42.7]} 23. Qd1 {[%clk 0:02:26.1]} 23... Rxc1 {[%clk
0:02:38.4]} 24. Qxc1 {[%clk 0:02:28]} 24... Qc6 {[%clk 0:02:39.1]} 25. Qd2
{[%clk 0:02:04.1]} 25... a5 {[%clk 0:02:15.2]} 26. Kh2 {[%clk 0:01:42.4]} 26...
Kf8 {[%clk 0:02:03]} 27. Ne1 {[%clk 0:01:21.1]} 27... Bb4 {[%clk 0:02:00]} 28.
Qe2 {[%clk 0:01:17.3]} 28... Be7 {[%clk 0:01:42.3]} 29. Qd3 {[%clk 0:01:09.1]}
29... Nb4 {[%clk 0:01:34.1]} 30. Qd2 {[%clk 0:01:05.4]} 30... Qd7 {[%clk
0:01:14.8]} 31. f4 {[%clk 0:01:02.9]} 31... Bd5 {[%clk 0:01:09.9]} 32. a3 {[%clk
0:01:00.7]} 32... Nc6 {[%clk 0:01:08.9]} 33. Nc2 {[%clk 0:01:01.7]} 33... Bb3
{[%clk 0:01:07.1]} 34. Nf2 {[%clk 0:00:53.6]} 34... h5 {[%clk 0:00:39.1]} 35.
Qd3 {[%clk 0:00:46.5]} 35... Bxc2 {[%clk 0:00:40.3]} 36. Qxc2 {[%clk 0:00:46.5]}
36... Nxd4 {[%clk 0:00:41.3]} 37. Qh7 {[%clk 0:00:46.4]} 37... Ke8 {[%clk
0:00:40.4]} 38. Qxg7 {[%clk 0:00:43.6]} 38... Bf8 {[%clk 0:00:33.9]} 39. Qg5
{[%clk 0:00:39.6]} 39... Qe7 {[%clk 0:00:28.8]} 40. Qxh5 {[%clk 0:00:38.2]}
40... Qxa3 {[%clk 0:00:28.4]} 41. Ne4 {[%clk 0:00:39.4]} 41... a4 {[%clk
0:00:19.9]} 42. Ng5 {[%clk 0:00:35.6]} 42... Qe7 {[%clk 0:00:20.1]} 43. Qd1
{[%clk 0:00:34.3]} 43... Qd7 {[%clk 0:00:20.2]} 44. h5 {[%clk 0:00:32.4]} 44...
b5 {[%clk 0:00:20.4]} 45. Nh7 {[%clk 0:00:31.1]} 45... Be7 {[%clk 0:00:20.8]}
46. h6 {[%clk 0:00:31.6]} 46... Nf5 {[%clk 0:00:21.6]} 47. Qh5 {[%clk
0:00:24.4]} 47... Qd3 {[%clk 0:00:20.5]} 48. Bc6+ {[%clk 0:00:18.3]} 48... Kd8
{[%clk 0:00:21.2]} 49. Qg4 {[%clk 0:00:16.1]} 49... a3 {[%clk 0:00:21.3]} 50.
Ng5 {[%clk 0:00:15.9]} 50... Nxh6 {[%clk 0:00:20.9]} 51. Nxf7+ {[%clk
0:00:11.4]} 51... Nxf7 {[%clk 0:00:21.3]} 52. Qxe6 {[%clk 0:00:13]} 52... b4
{[%clk 0:00:14.4]} 53. Qxf7 {[%clk 0:00:10.6]} 53... Qc2+ {[%clk 0:00:15.5]} 54.
Bg2 {[%clk 0:00:07.8]} 54... a2 {[%clk 0:00:16.7]} 55. Qd5+ {[%clk 0:00:07.2]}
55... Kc7 {[%clk 0:00:17.7]} 56. Qb7+ {[%clk 0:00:08.3]} 56... Kd8 {[%clk
0:00:18.6]} 57. Qa8+ {[%clk 0:00:08.2]} 57... Kd7 {[%clk 0:00:15.9]} 58. f5
{[%clk 0:00:06.6]} 58... Bc5 {[%clk 0:00:10.1]} 59. Qc6+ {[%clk 0:00:05.3]}
59... Kd8 {[%clk 0:00:08.5]} 60. e6 {[%clk 0:00:04.1]} 60... Bg1+ {[%clk
0:00:09.2]} 0-1

[Event "*** Titled Tuesday Blitz"]
[Site "Chess.com"]
[Date "2019.12.03"]
[Round "9"]
[White "olksuna"]
[Black "marianokar"]
[Result "0-1"]
[WhiteElo "2574"]
[BlackElo "2433"]
[TimeControl "180+2"]
[EndTime "15:08:11 PST"]
[Termination "marianokar won by resignation"]

1. e4 {[%clk 0:03:01.3]} 1... e5 {[%clk 0:02:57.8]} 2. Nf3 {[%clk 0:03:01.9]}
2... Nc6 {[%clk 0:02:59.3]} 3. Bc4 {[%clk 0:03:03]} 3... Nf6 {[%clk 0:02:57.2]}
4. d3 {[%clk 0:03:02.5]} 4... Be7 {[%clk 0:02:57.8]} 5. O-O {[%clk 0:03:02.3]}
5... O-O {[%clk 0:02:57.4]} 6. a4 {[%clk 0:03:03.5]} 6... d6 {[%clk 0:02:55.8]}
7. Re1 {[%clk 0:02:58.5]} 7... Bg4 {[%clk 0:02:53.9]} 8. Nbd2 {[%clk 0:02:57.5]}
8... Nd7 {[%clk 0:02:54.6]} 9. h3 {[%clk 0:02:54]} 9... Bh5 {[%clk 0:02:54.7]}
10. c3 {[%clk 0:02:55.2]} 10... Nc5 {[%clk 0:02:54]} 11. Nf1 {[%clk 0:02:51.6]}
11... Ne6 {[%clk 0:02:39.6]} 12. Ng3 {[%clk 0:02:48.1]} 12... Bxf3 {[%clk
0:02:39]} 13. Qxf3 {[%clk 0:02:49]} 13... Bg5 {[%clk 0:02:40.8]} 14. b4 {[%clk
0:02:46.3]} 14... Bxc1 {[%clk 0:02:39]} 15. Raxc1 {[%clk 0:02:46.7]} 15... Ne7
{[%clk 0:02:31]} 16. Qg4 {[%clk 0:02:38.8]} 16... Qd7 {[%clk 0:02:30.7]} 17. Nh5
{[%clk 0:02:36.8]} 17... Ng6 {[%clk 0:02:28.8]} 18. g3 {[%clk 0:02:35.5]} 18...
c6 {[%clk 0:02:19.2]} 19. h4 {[%clk 0:02:31.7]} 19... d5 {[%clk 0:02:13.3]} 20.
Bb3 {[%clk 0:02:31.3]} 20... Rad8 {[%clk 0:02:05]} 21. Kg2 {[%clk 0:02:27.7]}
21... Qc7 {[%clk 0:01:59.1]} 22. a5 {[%clk 0:02:21.4]} 22... a6 {[%clk
0:01:58.4]} 23. Re3 {[%clk 0:02:08.2]} 23... Rfe8 {[%clk 0:01:54.2]} 24. Rf3
{[%clk 0:01:56.5]} 24... Re7 {[%clk 0:01:41.5]} 25. Re1 {[%clk 0:01:53.8]} 25...
Qd6 {[%clk 0:01:39.5]} 26. exd5 {[%clk 0:01:51.2]} 26... cxd5 {[%clk 0:01:39.3]}
27. Rf5 {[%clk 0:01:49.4]} 27... d4 {[%clk 0:01:23.6]} 28. Bxe6 {[%clk
0:01:25.7]} 28... Qxe6 {[%clk 0:01:07.7]} 29. cxd4 {[%clk 0:01:25.5]} 29... Qc6+
{[%clk 0:01:05.9]} 30. Qe4 {[%clk 0:01:12.7]} 30... Rxd4 {[%clk 0:01:05.8]} 31.
Qxc6 {[%clk 0:01:11.7]} 31... bxc6 {[%clk 0:01:06.7]} 32. Rc1 {[%clk 0:01:11.2]}
32... Re6 {[%clk 0:01:03]} 33. Rc4 {[%clk 0:01:09.1]} 33... Rxd3 {[%clk
0:00:57.6]} 34. Rf3 {[%clk 0:01:05.4]} 34... Rd5 {[%clk 0:00:32.7]} 35. Rfc3
{[%clk 0:01:00.3]} 35... Ne7 {[%clk 0:00:33.6]} 36. g4 {[%clk 0:00:56.9]} 36...
g6 {[%clk 0:00:30]} 37. Ng3 {[%clk 0:00:58.1]} 37... f5 {[%clk 0:00:31.3]} 38.
gxf5 {[%clk 0:00:50.2]} 38... gxf5 {[%clk 0:00:33.2]} 39. h5 {[%clk 0:00:51.6]}
39... Kf7 {[%clk 0:00:25.8]} 40. Nf1 {[%clk 0:00:45]} 40... f4 {[%clk
0:00:22.9]} 41. Nh2 {[%clk 0:00:39.7]} 41... Kf6 {[%clk 0:00:23.2]} 42. Kf3
{[%clk 0:00:38.3]} 42... Kf5 {[%clk 0:00:22.7]} 43. Re4 {[%clk 0:00:34.9]} 43...
Red6 {[%clk 0:00:22]} 44. Rec4 {[%clk 0:00:31.1]} 44... Rd3+ {[%clk 0:00:17.5]}
45. Ke2 {[%clk 0:00:32.4]} 45... Rxc3 {[%clk 0:00:18.1]} 46. Rxc3 {[%clk
0:00:34.3]} 46... Rd4 {[%clk 0:00:17]} 47. Rd3 {[%clk 0:00:23.4]} 47... Rxb4
{[%clk 0:00:11.4]} 48. Rd7 {[%clk 0:00:24.1]} 48... Rb2+ {[%clk 0:00:11.5]} 49.
Ke1 {[%clk 0:00:22.6]} 49... Nd5 {[%clk 0:00:11.2]} 50. Nf3 {[%clk 0:00:23]}
50... Nc3 {[%clk 0:00:10.5]} 51. Rf7+ {[%clk 0:00:19.9]} 51... Ke4 {[%clk
0:00:10.1]} 52. Nd2+ {[%clk 0:00:20.4]} 52... Kd5 {[%clk 0:00:10.1]} 53. Rxh7
{[%clk 0:00:18.6]} 53... Ra2 {[%clk 0:00:10.1]} 54. Nf3 {[%clk 0:00:18.6]} 54...
e4 {[%clk 0:00:10]} 55. Ng5 {[%clk 0:00:19]} 55... e3 {[%clk 0:00:10.8]} 56.
Rd7+ {[%clk 0:00:18.4]} 56... Kc5 {[%clk 0:00:09.6]} 57. fxe3 {[%clk 0:00:19.3]}
57... fxe3 {[%clk 0:00:09.7]} 58. Kf1 {[%clk 0:00:20.7]} 58... e2+ {[%clk
0:00:07.5]} 59. Kf2 {[%clk 0:00:19.5]} 59... Ra1 {[%clk 0:00:08.8]} 60. Nf3
{[%clk 0:00:20.1]} 60... Rf1+ {[%clk 0:00:08.1]} 61. Kg2 {[%clk 0:00:21.3]}
61... Rxf3 {[%clk 0:00:09.1]} 62. Re7 {[%clk 0:00:22.1]} 62... Rf1 {[%clk
0:00:09.8]} 63. Rxe2 {[%clk 0:00:17.6]} 63... Nxe2 {[%clk 0:00:10.6]} 64. Kxf1
{[%clk 0:00:18.4]} 64... Ng3+ {[%clk 0:00:11]} 0-1

[Event "*** Titled Tuesday Blitz"]
[Site "Chess.com"]
[Date "2019.12.03"]
[Round "9"]
[White "Egorov_Pavel"]
[Black "ehrenfeld"]
[Result "0-1"]
[WhiteElo "2373"]
[BlackElo "2555"]
[TimeControl "180+2"]
[EndTime "15:08:11 PST"]
[Termination "ehrenfeld won on time"]

1. d4 {[%clk 0:03:01.5]} 1... f5 {[%clk 0:00:55.9]} 2. c4 {[%clk 0:03:02.3]}
2... Nf6 {[%clk 0:00:56.2]} 3. Nc3 {[%clk 0:03:03.8]} 3... e6 {[%clk 0:00:56.1]}
4. Nf3 {[%clk 0:03:04.5]} 4... Bb4 {[%clk 0:00:56.9]} 5. e3 {[%clk 0:03:05.6]}
5... b6 {[%clk 0:00:57.1]} 6. Bd3 {[%clk 0:03:06.6]} 6... Bxc3+ {[%clk
0:00:57.5]} 7. bxc3 {[%clk 0:03:07.9]} 7... Bb7 {[%clk 0:00:58.6]} 8. O-O {[%clk
0:03:09.5]} 8... O-O {[%clk 0:00:59]} 9. Qc2 {[%clk 0:03:08.7]} 9... Qe8 {[%clk
0:00:56.2]} 10. a4 {[%clk 0:03:06.8]} 10... Qh5 {[%clk 0:00:50.3]} 11. Ne1
{[%clk 0:02:56.1]} 11... Nc6 {[%clk 0:00:41.4]} 12. f3 {[%clk 0:02:52.6]} 12...
Rae8 {[%clk 0:00:37]} 13. Ba3 {[%clk 0:02:52.5]} 13... Rf7 {[%clk 0:00:37]} 14.
c5 {[%clk 0:02:54.1]} 14... Kh8 {[%clk 0:00:34]} 15. cxb6 {[%clk 0:02:55.2]}
15... axb6 {[%clk 0:00:34.5]} 16. c4 {[%clk 0:02:55.2]} 16... f4 {[%clk
0:00:26.9]} 17. Bc1 {[%clk 0:02:27.4]} 17... fxe3 {[%clk 0:00:26]} 18. Bxe3
{[%clk 0:02:29.3]} 18... e5 {[%clk 0:00:26.2]} 19. d5 {[%clk 0:02:25.5]} 19...
Nd4 {[%clk 0:00:26.1]} 20. Bxd4 {[%clk 0:02:27]} 20... exd4 {[%clk 0:00:26.9]}
21. Qf2 {[%clk 0:02:16.4]} 21... Qe5 {[%clk 0:00:18.6]} 22. Nc2 {[%clk
0:02:16.1]} 22... Ng4 {[%clk 0:00:17.3]} 23. Qg3 {[%clk 0:02:12.5]} 23... Qxg3
{[%clk 0:00:16]} 24. hxg3 {[%clk 0:02:14.4]} 24... Ne3 {[%clk 0:00:17.2]} 25.
Rfe1 {[%clk 0:02:11.6]} 25... Rfe7 {[%clk 0:00:12.6]} 26. Nxd4 {[%clk
0:02:13.1]} 26... Nxd5 {[%clk 0:00:13.7]} 27. Rxe7 {[%clk 0:02:07.5]} 27... Nxe7
{[%clk 0:00:11.3]} 28. Re1 {[%clk 0:02:09]} 28... Kg8 {[%clk 0:00:12.2]} 29. Nb5
{[%clk 0:01:38.6]} 29... Kf8 {[%clk 0:00:12.8]} 30. Nxc7 {[%clk 0:01:32.4]}
30... Rc8 {[%clk 0:00:13.5]} 31. Nb5 {[%clk 0:01:33.6]} 31... Ba6 {[%clk
0:00:13.7]} 32. Re4 {[%clk 0:00:55.4]} 32... Rc5 {[%clk 0:00:12.6]} 33. Rf4+
{[%clk 0:00:52.5]} 33... Kg8 {[%clk 0:00:12.9]} 34. Nd6 {[%clk 0:00:44.4]} 34...
Nc6 {[%clk 0:00:08.6]} 35. Be4 {[%clk 0:00:40]} 35... Ne7 {[%clk 0:00:03.5]} 36.
Nf5 {[%clk 0:00:32.4]} 36... Nxf5 {[%clk 0:00:03.8]} 37. Bxf5 {[%clk 0:00:30.1]}
37... Rxc4 {[%clk 0:00:04.7]} 38. Bxd7 {[%clk 0:00:26]} 38... Rxf4 {[%clk
0:00:05.2]} 39. gxf4 {[%clk 0:00:27.9]} 39... Kf8 {[%clk 0:00:06.6]} 40. Kf2
{[%clk 0:00:27.6]} 40... Ke7 {[%clk 0:00:07.9]} 41. Bf5 {[%clk 0:00:28.9]} 41...
h6 {[%clk 0:00:08.6]} 42. Ke3 {[%clk 0:00:28.9]} 42... Kf6 {[%clk 0:00:09.4]}
43. Bc2 {[%clk 0:00:25.9]} 43... h5 {[%clk 0:00:06.8]} 44. g3 {[%clk 0:00:22.7]}
44... Bc8 {[%clk 0:00:06.2]} 45. Kd4 {[%clk 0:00:23.4]} 45... Bb7 {[%clk
0:00:05.4]} 46. Be4 {[%clk 0:00:22.4]} 46... Ba6 {[%clk 0:00:05.6]} 47. Kd5
{[%clk 0:00:19.4]} 47... b5 {[%clk 0:00:05]} 48. a5 {[%clk 0:00:17]} 48... b4
{[%clk 0:00:05.9]} 49. Bc2 {[%clk 0:00:16]} 49... Bb7+ {[%clk 0:00:05.7]} 50.
Kc5 {[%clk 0:00:15.5]} 50... Bxf3 {[%clk 0:00:05.8]} 51. Kxb4 {[%clk 0:00:17.1]}
51... g5 {[%clk 0:00:06]} 52. fxg5+ {[%clk 0:00:16.6]} 52... Kxg5 {[%clk
0:00:07]} 53. a6 {[%clk 0:00:16.8]} 53... Kg4 {[%clk 0:00:07.8]} 54. a7 {[%clk
0:00:15.7]} 54... Kxg3 {[%clk 0:00:08.3]} 55. Kc5 {[%clk 0:00:15.9]} 55... h4
{[%clk 0:00:08.9]} 56. Bb3 {[%clk 0:00:17.6]} 56... h3 {[%clk 0:00:09.6]} 57.
Bd5 {[%clk 0:00:19.5]} 57... Bxd5 {[%clk 0:00:09.8]} 58. Kxd5 {[%clk 0:00:21.4]}
58... h2 {[%clk 0:00:11.3]} 59. Kc6 {[%clk 0:00:18.8]} 59... h1=Q+ {[%clk
0:00:12.2]} 60. Kb6 {[%clk 0:00:19.9]} 60... Qa8 {[%clk 0:00:13.7]} 0-1

[Event "*** Titled Tuesday Blitz"]
[Site "Chess.com"]
[Date "2019.12.03"]
[Round "9"]
[White "masrahi"]
[Black "coalescenet"]
[Result "1/2-1/2"]
[WhiteElo "1973"]
[BlackElo "2299"]
[TimeControl "180+2"]
[EndTime "15:08:30 PST"]
[Termination "Game drawn by repetition"]

1. c4 {[%clk 0:03:01.9]} 1... e6 {[%clk 0:03:00.3]} 2. Nc3 {[%clk 0:02:59.2]}
2... d5 {[%clk 0:03:01.3]} 3. d4 {[%clk 0:02:58.6]} 3... Nf6 {[%clk 0:03:02.1]}
4. cxd5 {[%clk 0:02:58.9]} 4... exd5 {[%clk 0:03:03.3]} 5. Bg5 {[%clk
0:03:00.5]} 5... Be7 {[%clk 0:03:04]} 6. Qc2 {[%clk 0:03:01.3]} 6... Nbd7 {[%clk
0:03:01.3]} 7. e3 {[%clk 0:03:02.4]} 7... Nf8 {[%clk 0:02:59.5]} 8. Bd3 {[%clk
0:03:02.5]} 8... Ne6 {[%clk 0:02:59.9]} 9. Bh4 {[%clk 0:03:02]} 9... g6 {[%clk
0:02:57.9]} 10. Nf3 {[%clk 0:03:01.5]} 10... Ng7 {[%clk 0:02:58.6]} 11. O-O
{[%clk 0:03:01.4]} 11... Nf5 {[%clk 0:02:52.5]} 12. Bg5 {[%clk 0:02:38.8]} 12...
O-O {[%clk 0:02:45.1]} 13. Rab1 {[%clk 0:02:36.3]} 13... a5 {[%clk 0:02:45.2]}
14. a3 {[%clk 0:02:36.9]} 14... h6 {[%clk 0:02:20.2]} 15. Bf4 {[%clk 0:02:36.5]}
15... Kg7 {[%clk 0:02:16.9]} 16. Be5 {[%clk 0:02:31.3]} 16... c6 {[%clk
0:02:14.7]} 17. b4 {[%clk 0:02:31.6]} 17... axb4 {[%clk 0:02:12.5]} 18. axb4
{[%clk 0:02:33.1]} 18... Bd6 {[%clk 0:02:12.3]} 19. b5 {[%clk 0:02:30.5]} 19...
Be6 {[%clk 0:02:00.6]} 20. bxc6 {[%clk 0:02:30]} 20... bxc6 {[%clk 0:02:02]} 21.
Na4 {[%clk 0:02:18.8]} 21... Bxe5 {[%clk 0:01:33]} 22. Nxe5 {[%clk 0:02:02.7]}
22... Qa5 {[%clk 0:01:13.9]} 23. Nb6 {[%clk 0:01:24.9]} 23... Rab8 {[%clk
0:01:08.2]} 24. Nxc6 {[%clk 0:01:25.1]} 24... Qxb6 {[%clk 0:00:50.8]} 25. Rxb6
{[%clk 0:01:27]} 25... Rxb6 {[%clk 0:00:51.7]} 26. Ne5 {[%clk 0:01:17]} 26...
Rfb8 {[%clk 0:00:49]} 27. h3 {[%clk 0:01:06]} 27... Rb2 {[%clk 0:00:40.9]} 28.
Qc5 {[%clk 0:00:59.6]} 28... Rc8 {[%clk 0:00:33.8]} 29. Qa3 {[%clk 0:00:56.3]}
29... Rbb8 {[%clk 0:00:31.2]} 30. Rb1 {[%clk 0:00:35.1]} 30... Ra8 {[%clk
0:00:30.8]} 31. Qb2 {[%clk 0:00:36.4]} 31... Ra7 {[%clk 0:00:28.5]} 32. Qb6
{[%clk 0:00:31.9]} 32... Rac7 {[%clk 0:00:28]} 33. Bf1 {[%clk 0:00:19.7]} 33...
Ne4 {[%clk 0:00:23.5]} 34. Nd3 {[%clk 0:00:17.2]} 34... Nd2 {[%clk 0:00:21.4]}
35. Rd1 {[%clk 0:00:17.1]} 35... Nc4 {[%clk 0:00:21.6]} 36. Qa6 {[%clk
0:00:16.8]} 36... Rc6 {[%clk 0:00:22.7]} 37. Qa4 {[%clk 0:00:17]} 37... Nb6
{[%clk 0:00:19.7]} 38. Qa2 {[%clk 0:00:14.7]} 38... Ra8 {[%clk 0:00:19.5]} 39.
Qe2 {[%clk 0:00:14.7]} 39... Nd7 {[%clk 0:00:19.3]} 40. Nc5 {[%clk 0:00:13.6]}
40... Nxc5 {[%clk 0:00:19.5]} 41. dxc5 {[%clk 0:00:15.5]} 41... Rxc5 {[%clk
0:00:18.5]} 42. Qb2+ {[%clk 0:00:16.2]} 42... Kh7 {[%clk 0:00:19.7]} 43. Qe5
{[%clk 0:00:17]} 43... Rac8 {[%clk 0:00:19.8]} 44. g3 {[%clk 0:00:17.6]} 44...
Rc2 {[%clk 0:00:20.3]} 45. Kg2 {[%clk 0:00:17.4]} 45... Ng7 {[%clk 0:00:21.1]}
46. Qf6 {[%clk 0:00:17.2]} 46... Ra2 {[%clk 0:00:21]} 47. Bd3 {[%clk 0:00:18.5]}
47... Rb8 {[%clk 0:00:19.4]} 48. e4 {[%clk 0:00:19.7]} 48... Rbb2 {[%clk
0:00:19.1]} 49. exd5 {[%clk 0:00:20.4]} 49... Bxd5+ {[%clk 0:00:20.3]} 50. Kg1
{[%clk 0:00:20.2]} 50... Be6 {[%clk 0:00:21.5]} 51. Qf4 {[%clk 0:00:19.5]} 51...
Bxh3 {[%clk 0:00:21.5]} 52. Kh2 {[%clk 0:00:19.6]} 52... Bf5 {[%clk 0:00:22.6]}
53. Qa4 {[%clk 0:00:20.9]} 53... Rxf2+ {[%clk 0:00:23.4]} 54. Kg1 {[%clk
0:00:21.4]} 54... Rg2+ {[%clk 0:00:24.6]} 55. Kf1 {[%clk 0:00:22.4]} 55... Raf2+
{[%clk 0:00:24.7]} 56. Ke1 {[%clk 0:00:23.7]} 56... Bg4 {[%clk 0:00:22.2]} 57.
Rb1 {[%clk 0:00:22.1]} 57... h5 {[%clk 0:00:20.1]} 58. Qe4 {[%clk 0:00:22.1]}
58... Rf6 {[%clk 0:00:20.3]} 59. Qxg2 {[%clk 0:00:21.2]} 59... Re6+ {[%clk
0:00:20]} 60. Kd2 {[%clk 0:00:21.9]} 60... Rd6 {[%clk 0:00:21.4]} 61. Rb3 {[%clk
0:00:22.9]} 61... Bf5 {[%clk 0:00:21.9]} 62. Rc3 {[%clk 0:00:24.4]} 62... Ne6
{[%clk 0:00:22.7]} 63. Qf3 {[%clk 0:00:24.7]} 63... Ng5 {[%clk 0:00:23.6]} 64.
Qf4 {[%clk 0:00:25.6]} 64... Ne4+ {[%clk 0:00:24.5]} 65. Kc2 {[%clk 0:00:26.2]}
65... Rxd3 {[%clk 0:00:22.6]} 66. Rxd3 {[%clk 0:00:26.9]} 66... Nc5 {[%clk
0:00:23.5]} 67. Kd2 {[%clk 0:00:26.4]} 67... Nxd3 {[%clk 0:00:24.8]} 68. Qd6
{[%clk 0:00:24.8]} 68... Kg7 {[%clk 0:00:25.4]} 69. Ke3 {[%clk 0:00:25.7]} 69...
Ne1 {[%clk 0:00:25.6]} 70. Kf4 {[%clk 0:00:26.6]} 70... Nc2 {[%clk 0:00:24.7]}
71. Qe5+ {[%clk 0:00:26.6]} 71... Kg8 {[%clk 0:00:25.7]} 72. Qe8+ {[%clk
0:00:25.5]} 72... Kg7 {[%clk 0:00:25.8]} 73. Qe5+ {[%clk 0:00:26.6]} 73... Kg8
{[%clk 0:00:26.8]} 74. Qb8+ {[%clk 0:00:27.6]} 74... Kg7 {[%clk 0:00:27.4]} 75.
Qb2+ {[%clk 0:00:28.9]} 75... Kf8 {[%clk 0:00:27.9]} 76. Qb8+ {[%clk 0:00:27.3]}
76... Kg7 {[%clk 0:00:29]} 77. Qe5+ {[%clk 0:00:23.8]} 1/2-1/2